bitfinex/quotes_SOLUSD_20250717
["timestamp","ask_amount","ask_price","bid_price","bid_amount"]
[1752785681384,0.03,173.46,173.45,30.78893835]
[1752785681690,1e-08,173.5,173.48,26.0]
[1752785681987,1e-08,173.5,173.49,37.35877121]
[1752785682186,1e-08,173.5,173.49,61.8058243]
[1752785682688,1e-08,173.51,173.5,42.78468397]
[1752785682883,1e-08,173.51,173.5,69.58281097]
[1752785683317,1e-08,173.51,173.5,45.10511097]
[1752785684513,1e-08,173.51,173.5,38.12274185]
[1752785684795,1e-08,173.51,173.5,66.97681072]
[1752785685798,1e-08,173.51,173.5,69.12242675]
[1752785686336,1e-08,173.51,173.5,68.54605788]
[1752785687121,0.72000001,173.51,173.5,29.8]
[1752785688315,1e-08,173.51,173.5,35.56368876]
[1752785689543,0.72000001,173.51,173.5,35.56368876]
[1752785689851,0.72000001,173.51,173.5,43.22605788]
[1752785689852,1e-08,173.51,173.5,43.22605788]
[1752785693326,1e-08,173.51,173.5,69.22605788]
[1752785694049,1e-08,173.51,173.5,31.76368876]
[1752785694230,1e-08,173.51,173.5,68.52605788]
[1752785694432,0.72000001,173.51,173.5,68.52605788]
[1752785694640,1e-08,173.51,173.5,68.52605788]
[1752785694835,1e-08,173.51,173.5,69.20605788]
[1752785695759,1e-08,173.51,173.5,92.97311097]
[1752785695958,1e-08,173.51,173.5,66.97311097]
[1752785696652,1e-08,173.53,173.51,16.78468397]
[1752785696858,1e-08,173.53,173.52,63.33867156]
[1752785697456,1e-08,173.53,173.52,64.01867156]
[1752785698430,1e-08,173.53,173.52,69.78169599]
[1752785699345,1e-08,173.53,173.52,32.33932687]
[1752785699539,1e-08,173.53,173.52,69.10169599]
[1752785700258,1e-08,173.53,173.52,39.32169599]
[1752785700460,0.72000001,173.53,173.51,6.98236912]
[1752785700628,9.27616913,173.53,173.47,12.74705465]
[1752785700828,6.98236912,173.51,173.45,6.98236912]
[1752785701054,6.98236912,173.48,173.43,6.98236912]
[1752785701234,7.70236912,173.47,173.44,29.76]
[1752785701557,1.57380001,173.53,173.45,29.76]
[1752785701558,0.72,173.46,173.45,29.76]
[1752785701850,0.72,173.48,173.45,36.74236912]
[1752785702050,6.98236912,173.5,173.45,29.76]
[1752785702246,0.72,173.47,173.45,36.74236912]
[1752785702445,0.72,173.47,173.46,5.76501787]
[1752785703043,0.72,173.47,173.45,45.75930632]
[1752785703238,0.67,173.46,173.45,29.76]
[1752785706453,0.67,173.48,173.45,29.76]
[1752785706637,0.67,173.47,173.45,35.52526881]
[1752785706851,0.67,173.46,173.45,29.76]
[1752785707642,10.23405083,173.5,173.45,45.75940107]
[1752785707966,0.67,173.48,173.45,45.75940107]
[1752785708872,0.67,173.5,173.46,10.23405083]
[1752785709042,0.67,173.49,173.47,29.76]
[1752785709753,0.67,173.48,173.47,29.76]
[1752785713770,16.66840406,173.48,173.47,29.76]
[1752785714363,10.90405083,173.48,173.47,29.76]
[1752785715370,0.67,173.48,173.47,29.76]
[1752785716366,10.90405083,173.48,173.47,29.76]
[1752785716564,16.66840406,173.48,173.47,29.76]
[1752785718256,10.90405083,173.48,173.47,29.76]
[1752785718457,16.66840406,173.48,173.4,0.68]
[1752785718659,10.23405083,173.44,173.39,0.06]
[1752785718964,10.23405083,173.43,173.4,29.76]
[1752785719365,10.23405083,173.41,173.39,29.82]
[1752785719574,27.6157,173.46,173.39,29.82]
[1752785719575,10.90405083,173.4,173.39,29.82]
[1752785719761,0.67,173.4,173.39,29.82]
[1752785722164,10.23405083,173.44,173.39,46.50139612]
[1752785722477,0.67,173.43,173.39,45.82139612]
[1752785723078,0.67,173.43,173.39,42.56987325]
[1752785724581,0.67,173.43,173.39,35.58734529]
[1752785724876,6.98252796,173.4,173.39,0.06]
[1752785725070,7.65252796,173.4,173.39,0.06]
[1752785725873,148.3,173.41,173.39,29.82]
[1752785726782,148.3,173.41,173.39,35.58723754]
[1752785727383,148.97,173.41,173.39,29.82]
[1752785727777,148.97,173.41,173.39,35.58729942]
[1752785727971,148.3,173.41,173.39,45.82946361]
[1752785728387,148.3,173.41,173.4,10.24216419]
[1752785728591,148.3,173.41,173.4,10.92216419]
[1752785728785,148.3,173.41,173.39,35.58729942]
[1752785728786,1.5988,173.4,173.39,0.06]
[1752785728957,12.51096419,173.4,173.39,0.06]
[1752785731284,2.2688,173.4,173.39,0.06]
[1752785731674,12.51096419,173.4,173.39,0.06]
[1752785733084,0.66,173.42,173.39,0.06]
[1752785733592,158.54216419,173.44,173.4,29.76]
[1752785733897,0.66,173.43,173.4,29.76]
[1752785736388,0.66,173.43,173.4,35.52697119]
[1752785736572,148.3,173.44,173.4,45.76913538]
[1752785736770,148.96,173.44,173.4,46.48913538]
[1752785736970,148.96,173.44,173.4,45.76913538]
[1752785738082,148.3,173.44,173.42,10.24216419]
[1752785738273,0.66,173.46,173.43,29.76]
[1752785738671,0.66,173.48,173.43,40.00216419]
[1752785738871,0.66,173.48,173.44,10.24216419]
[1752785739179,0.66,173.48,173.45,10.24216419]
[1752785739379,0.66,173.48,173.46,29.76]
[1752785740086,0.66,173.47,173.46,29.76]
[1752785740291,0.66,173.47,173.4,26.0]
[1752785740292,10.90216419,173.47,173.4,26.0]
[1752785740481,10.24216419,173.45,173.41,29.76]
[1752785740685,10.90216419,173.44,173.41,29.76]
[1752785740877,11.87946419,173.42,173.39,0.06]
[1752785741076,10.24216419,173.4,173.39,0.06]
[1752785741484,10.90216419,173.4,173.39,0.06]
[1752785742093,16.66917687,173.4,173.39,0.06]
[1752785743793,10.90216419,173.4,173.39,0.06]
[1752785744097,2.2973,173.42,173.39,0.06]
[1752785744275,10.24216419,173.41,173.39,0.06]
[1752785744474,148.3,173.43,173.39,40.06216419]
[1752785744672,148.3,173.43,173.39,40.78216419]
[1752785744972,0.66,173.45,173.39,40.78216419]
[1752785745178,0.66,173.45,173.41,10.24216419]
[1752785745393,160.70296419,173.47,173.42,10.24216419]
[1752785745597,150.4608,173.47,173.42,10.24216419]
[1752785745892,10.90216419,173.46,173.43,29.76]
[1752785746197,0.66,173.45,173.43,29.76]
[1752785746575,10.24216419,173.46,173.39,0.06]
[1752785746576,10.90216419,173.44,173.39,0.06]
[1752785746789,10.24216419,173.43,173.4,29.76]
[1752785747313,0.66,173.42,173.4,29.76]
[1752785747796,0.66,173.41,173.39,0.06]
[1752785748008,10.90216419,173.43,173.39,0.06]
[1752785748188,0.66,173.43,173.39,10.30216419]
[1752785748379,6.42506134,173.46,173.4,10.96216419]
[1752785748604,10.24216419,173.45,173.4,10.96216419]
[1752785748784,10.90216419,173.45,173.4,10.96216419]
[1752785749993,10.90216419,173.45,173.41,5.76668012]
[1752785750394,10.90216419,173.44,173.4,5.76693159]
[1752785750904,0.66,173.44,173.4,16.00909578]
[1752785751074,10.24216419,173.45,173.4,16.72909578]
[1752785751277,10.90216419,173.45,173.4,16.72909578]
[1752785751898,0.66,173.45,173.42,5.76634759]
[1752785752112,148.3,173.47,173.44,10.24216419]
[1752785752403,0.66,173.5,173.46,10.24216419]
[1752785752985,10.90216419,173.49,173.44,29.76]
[1752785753190,0.66,173.49,173.44,40.72216419]
[1752785753393,0.66,173.49,173.45,10.24216419]
[1752785754011,0.66,173.49,173.44,46.48765321]
[1752785754390,0.66,173.48,173.44,45.76765321]
[1752785754689,0.66,173.47,173.44,29.76]
[1752785754884,0.66,173.46,173.44,29.76]
[1752785755079,10.90216419,173.48,173.44,35.52565961]
[1752785755801,10.24216419,173.48,173.44,35.52565961]
[1752785756010,0.66,173.48,173.44,45.7678238]
[1752785756196,0.66,173.5,173.44,46.4878238]
[1752785756509,10.90216419,173.5,173.46,10.24216419]
[1752785757101,10.90216419,173.5,173.45,10.24216419]
[1752785757281,5.76346248,173.51,173.44,45.7678238]
[1752785757282,10.90216419,173.49,173.44,45.7678238]
[1752785757481,0.66,173.48,173.44,45.7678238]
[1752785757687,0.66,173.48,173.44,40.00216419]
[1752785757983,10.24216419,173.45,173.4,29.76]
[1752785758252,10.24216419,173.43,173.4,29.76]
[1752785758508,0.66,173.42,173.4,29.76]
[1752785759411,0.66,173.44,173.4,35.52698401]
[1752785759709,10.90216419,173.44,173.4,35.52698401]
[1752785760502,10.90216419,173.44,173.4,36.24698401]
[1752785760694,0.66,173.43,173.4,29.76]
[1752785761904,10.24216419,173.44,173.4,35.52693829]
[1752785762308,10.90216419,173.45,173.41,0.72]
[1752785762495,164.96695341,173.47,173.42,10.96216419]
[1752785762689,148.3,173.47,173.43,40.65216419]
[1752785762911,148.3,173.47,173.44,0.65]
[1752785763289,158.54216419,173.47,173.42,0.65]
[1752785763507,10.24216419,173.43,173.42,29.76]
[1752785763906,10.95216419,173.43,173.42,29.76]
[1752785764117,0.71,173.43,173.42,29.76]
[1752785764705,10.24216419,173.44,173.42,29.76]
[1752785765407,10.24216419,173.46,173.42,29.76]
[1752785765612,10.95216419,173.45,173.42,29.76]
[1752785765800,0.71,173.44,173.42,29.76]
[1752785767308,10.95216419,173.44,173.39,0.06]
[1752785767607,16.78468397,173.39,173.37,0.06]
[1752785767813,48.5530273,173.36,173.35,0.06]
[1752785767996,42.78468397,173.33,173.26,0.06]
[1752785768311,10.24216419,173.28,173.26,0.06]
[1752785768606,53.02684816,173.28,173.25,0.06]
[1752785768812,63.26901235,173.25,173.24,0.06]
[1752785769108,27.02684816,173.23,173.22,0.1]
[1752785769611,27.73684816,173.23,173.22,0.1]
[1752785770116,33.50952032,173.23,173.22,0.1]
[1752785771317,63.50952032,173.23,173.22,0.1]
[1752785772214,93.36952032,173.23,173.22,0.1]
[1752785772511,113.59684816,173.23,173.22,0.1]
[1752785772705,42.78468397,173.21,173.12,29.84]
[1752785772903,82.86684816,173.21,173.13,5.77572782]
[1752785773101,83.57684816,173.21,173.13,5.77572782]
[1752785773303,83.57684816,173.21,173.12,30.49]
[1752785773304,83.57684816,173.21,173.12,0.65]
[1752785773810,119.35018688,173.21,173.13,5.77600646]
[1752785775410,119.35018688,173.21,173.13,5.83600646]
[1752785775619,66.24216419,173.21,173.16,0.65]
[1752785775813,40.24216419,173.21,173.17,0.65]
[1752785776017,30.0,173.21,173.2,0.71]
[1752785777428,40.24216419,173.21,173.2,0.06]
[1752785777832,30.0,173.21,173.2,0.06]
[1752785778136,30.0,173.21,173.2,0.71]
[1752785778919,10.24216419,173.24,173.2,0.71]
[1752785779239,10.24216419,173.24,173.21,0.65]
[1752785780123,10.24216419,173.24,173.22,5.77300542]
[1752785780323,30.0,173.23,173.21,6.42326927]
[1752785780506,40.24216419,173.23,173.2,5.83361242]
[1752785780707,30.0,173.23,173.21,0.65]
[1752785780906,30.0,173.23,173.22,0.65]
[1752785781319,30.0,173.23,173.2,5.83361242]
[1752785781502,30.0,173.23,173.21,0.65]
[1752785781824,30.0,173.23,173.22,0.65]
[1752785782010,158.54216419,173.25,173.22,0.65]
[1752785782215,158.54216419,173.25,173.22,6.42289817]
[1752785783013,148.3,173.25,173.22,5.77289817]
[1752785783227,148.3,173.25,173.23,0.65]
[1752785783420,30.0,173.24,173.23,0.65]
[1752785784024,30.0,173.24,173.23,10.24216419]
[1752785784320,30.0,173.24,173.23,16.01483635]
[1752785784630,30.0,173.24,173.23,6.42267216]
[1752785784926,10.24216419,173.27,173.23,6.42267216]
[1752785785128,148.3,173.29,173.24,0.65]
[1752785785328,10.24216419,173.28,173.24,0.65]
[1752785786435,10.24216419,173.28,173.24,6.42225366]
[1752785787708,10.95216419,173.28,173.24,6.42225366]
[1752785789333,10.24216419,173.28,173.24,5.77225366]
[1752785789630,10.24216419,173.28,173.25,6.4219475]
[1752785789834,10.24216419,173.28,173.25,5.7719475]
[1752785790230,10.24216419,173.28,173.24,5.77226616]
[1752785790426,10.95216419,173.28,173.24,5.77226616]
[1752785790626,10.95216419,173.28,173.24,6.42226616]
[1752785792434,10.24216419,173.28,173.24,6.42226616]
[1752785792610,148.3,173.29,173.25,0.65]
[1752785792815,158.54216419,173.29,173.24,16.01443035]
[1752785793011,10.24216419,173.28,173.25,0.72]
[1752785793223,10.24216419,173.28,173.24,6.49226616]
[1752785793427,10.27216419,173.28,173.24,6.49226616]
[1752785795134,0.03,173.28,173.26,5.77167263]
[1752785795432,16.78468397,173.26,173.2,0.06]
[1752785795625,10.24216419,173.21,173.2,0.06]
[1752785796645,10.24216419,173.24,173.2,6.55367205]
[1752785796935,10.91216419,173.23,173.2,5.83367205]
[1752785797143,10.91216419,173.23,173.2,0.06]
[1752785797434,10.24216419,173.23,173.2,0.06]
[1752785797733,10.24216419,173.23,173.2,0.78]
[1752785798116,10.24216419,173.24,173.2,0.06]
[1752785798315,10.24216419,173.24,173.21,0.72]
[1752785799124,10.91216419,173.24,173.2,0.06]
[1752785799309,10.24216419,173.21,173.2,0.06]
[1752785799514,10.91216419,173.23,173.2,0.06]
[1752785799937,10.24216419,173.23,173.2,0.78]
[1752785800131,148.97,173.25,173.2,0.78]
[1752785800132,10.24216419,173.24,173.2,0.78]
[1752785800338,10.91216419,173.24,173.2,0.78]
[1752785800640,10.24216419,173.23,173.2,0.78]
[1752785800826,10.24216419,173.23,173.2,0.06]
[1752785801548,10.24216419,173.22,173.2,0.06]
[1752785803214,10.91216419,173.21,173.2,0.06]
[1752785803827,10.24216419,173.21,173.2,0.06]
[1752785804026,10.24216419,173.22,173.2,0.06]
[1752785805042,7.00126683,173.22,173.2,0.06]
[1752785805540,7.67126683,173.22,173.2,0.06]
[1752785805846,0.67,173.22,173.2,0.06]
[1752785806143,7.67126683,173.22,173.2,0.06]
[1752785806532,0.67,173.21,173.2,0.06]
[1752785807040,24.4559508,173.21,173.2,0.06]
[1752785807228,54.2559508,173.21,173.2,0.06]
[1752785808331,7.67126683,173.21,173.2,0.06]
[1752785809738,13.44460555,173.21,173.2,0.06]
[1752785812441,16.78468397,173.16,173.13,0.06]
[1752785812646,23.7859508,173.14,173.13,0.06]
[1752785812848,16.78468397,173.14,173.13,0.06]
[1752785813031,24.4559508,173.14,173.13,0.06]
[1752785813741,26.0,173.08,173.04,0.1]
[1752785813940,7.00126683,173.06,173.04,0.1]
[1752785814251,7.00126683,173.05,173.04,0.1]
[1752785815450,7.67126683,173.05,173.04,0.1]
[1752785815835,0.67,173.05,173.04,0.1]
[1752785816034,7.67126683,173.05,173.04,0.1]
[1752785816236,13.44994351,173.05,173.04,0.1]
[1752785816950,16.73886245,173.05,173.04,0.1]
[1752785817664,0.67,173.05,173.04,0.1]
[1752785817962,10.29018577,173.06,173.04,0.1]
[1752785818288,36.29018577,173.08,173.04,0.82]
[1752785819961,20.37330874,173.1,173.05,0.72]
[1752785819962,0.67,173.1,173.05,0.72]
[1752785820164,10.29018577,173.09,173.05,0.72]
[1752785820966,10.29018577,173.06,173.04,0.1]
[1752785821182,0.67,173.08,173.04,10.39018577]
[1752785821342,10.96018577,173.08,173.04,0.82]
[1752785821770,10.29018577,173.1,173.05,0.72]
[1752785822063,36.29018577,173.12,173.07,16.06819466]
[1752785822264,10.29018577,173.12,173.07,16.06819466]
[1752785822456,10.29018577,173.12,173.08,0.72]
[1752785822664,10.29018577,173.12,173.09,0.72]
[1752785822845,148.3,173.13,173.09,0.72]
[1752785823046,158.59018577,173.13,173.1,0.68]
[1752785823543,148.3,173.13,173.1,10.97018577]
[1752785823960,148.3,173.13,173.1,0.68]
[1752785824672,148.3,173.13,173.1,6.45689386]
[1752785825166,148.3,173.13,173.1,0.68]
[1752785825364,148.3,173.13,173.09,16.06742524]
[1752785825666,148.3,173.13,173.1,0.68]
[1752785825839,148.3,173.13,173.11,10.97018577]
[1752785826039,148.3,173.13,173.12,0.68]
[1752785827066,174.97,173.18,173.12,10.97018577]
[1752785827266,154.74440229,173.18,173.13,10.29018577]
[1752785827575,10.29018577,173.14,173.09,46.56749811]
[1752785827781,0.67,173.13,173.09,46.56749811]
[1752785828770,0.67,173.12,173.09,29.82]
[1752785828945,159.26018577,173.11,173.06,16.0682216]
[1752785829146,10.96018577,173.1,173.05,45.88876861]
[1752785829345,0.67,173.09,173.05,45.88876861]
[1752785829567,158.59018577,173.11,173.06,10.29018577]
[1752785829772,0.67,173.1,173.06,10.29018577]
[1752785830169,10.96018577,173.1,173.05,0.68]
[1752785830379,10.29018577,173.09,173.05,0.68]
[1752785830581,0.67,173.09,173.05,16.7487816]
[1752785830880,158.59018577,173.11,173.06,10.97018577]
[1752785831256,10.96018577,173.1,173.05,16.0687816]
[1752785831474,0.67,173.09,173.05,16.0687816]
[1752785831669,10.29018577,173.1,173.05,16.0687816]
[1752785831860,159.26018577,173.11,173.06,10.97018577]
[1752785832061,148.3,173.11,173.07,10.97018577]
[1752785832276,148.3,173.11,173.07,16.06793993]
[1752785832483,148.3,173.11,173.08,0.68]
[1752785833176,148.3,173.11,173.05,5.77867668]
[1752785833370,148.97,173.11,173.06,0.68]
[1752785833580,0.67,173.1,173.06,10.97018577]
[1752785833778,0.67,173.09,173.05,16.06886245]
[1752785833981,148.3,173.11,173.06,10.97018577]
[1752785834179,148.3,173.11,173.07,6.45800889]
[1752785834500,10.29018577,173.17,173.1,10.29018577]
[1752785834782,160.92098577,173.18,173.13,10.29018577]
[1752785834983,159.26018577,173.18,173.13,10.29018577]
[1752785835283,159.26018577,173.18,173.14,0.68]
[1752785835481,159.26018577,173.17,173.11,30.5]
[1752785835665,159.26018577,173.17,173.12,10.29018577]
[1752785835860,0.67,173.16,173.12,10.29018577]
[1752785836372,148.3,173.15,173.13,10.29018577]
[1752785836565,26.67,173.18,173.1,29.84]
[1752785836566,0.7,173.21,173.14,10.97018577]
[1752785836871,0.7,173.21,173.1,30.41770075]
[1752785836872,10.99018577,173.21,173.16,10.29018577]
[1752785837063,10.99018577,173.21,173.16,10.97018577]
[1752785837464,0.03,173.21,173.18,10.29018577]
[1752785837671,0.03,173.21,173.18,10.97018577]
[1752785838865,0.03,173.21,173.19,10.97018577]
[1752785840388,0.03,173.21,173.19,16.74409551]
[1752785841185,0.03,173.21,173.2,10.97018577]
[1752785841882,0.03,173.21,173.2,30.52]
[1752785842763,0.03,173.21,173.2,36.29367205]
[1752785843693,0.03,173.21,173.2,46.58385782]
[1752785843986,0.03,173.21,173.2,30.52]
[1752785844192,0.03,173.21,173.2,40.81018577]
[1752785844893,0.03,173.21,173.2,36.29367205]
[1752785845196,0.03,173.21,173.2,29.84]
[1752785846074,0.03,173.21,173.2,36.83798393]
[1752785846877,0.7,173.21,173.16,0.68]
[1752785847099,0.7,173.21,173.17,36.81798393]
[1752785847976,0.7,173.21,173.17,37.49798393]
[1752785848891,6.44383294,173.2,173.16,6.99798393]
[1752785849076,7.66798393,173.19,173.15,29.8]
[1752785849267,0.67,173.18,173.15,36.79798393]
[1752785849473,0.03,173.21,173.17,6.99798393]
[1752785849689,6.47343146,173.21,173.16,6.99798393]
[1752785849994,12.80141539,173.21,173.16,6.99798393]
[1752785850191,6.99798393,173.17,173.12,6.99798393]
[1752785850394,7.66798393,173.16,173.11,7.67798393]
[1752785850584,0.67,173.15,173.12,29.82]
[1752785851905,6.99798393,173.16,173.12,29.82]
[1752785852189,7.66798393,173.16,173.12,29.82]
[1752785852394,12.77303358,173.16,173.12,29.82]
[1752785852694,0.67,173.15,173.12,29.82]
[1752785853091,148.3,173.19,173.13,0.67]
[1752785853092,6.99798393,173.17,173.13,0.67]
[1752785853791,13.44271773,173.17,173.12,42.59430826]
[1752785853976,13.44271773,173.17,173.12,29.82]
[1752785854177,13.44271773,173.17,173.12,30.49]
[1752785854799,7.66798393,173.17,173.13,0.67]
[1752785854980,13.44272024,173.17,173.12,42.59428022]
[1752785855175,6.99798393,173.16,173.12,36.26629629]
[1752785855495,7.66798393,173.16,173.12,36.26629629]
[1752785855683,6.99798393,173.16,173.12,36.26629629]
[1752785855885,6.99798393,173.17,173.12,43.26428022]
[1752785856298,6.99798393,173.14,173.12,29.82]
[1752785856489,7.66798393,173.14,173.1,29.8]
[1752785856697,0.67,173.13,173.1,29.8]
[1752785857607,12.77381773,173.14,173.1,29.8]
[1752785857909,155.29798393,173.17,173.12,6.99798393]
[1752785858083,148.3,173.17,173.13,30.47]
[1752785858283,148.3,173.17,173.14,0.67]
[1752785859508,155.29798393,173.17,173.13,29.8]
[1752785859701,155.96798393,173.17,173.13,29.8]
[1752785860008,161.74276468,173.17,173.13,29.8]
[1752785860382,148.33,173.17,173.13,42.57388913]
[1752785860582,148.33,173.17,173.13,43.24388913]
[1752785861698,148.33,173.17,173.16,6.99798393]
[1752785862087,148.33,173.17,173.16,37.46798393]
[1752785862485,0.03,173.17,173.16,37.46798393]
[1752785863809,0.03,173.17,173.16,43.2429897]
[1752785865325,0.03,173.17,173.13,26.0]
[1752785865488,0.03,173.17,173.15,6.99798393]
[1752785865788,0.03,173.17,173.16,29.8]
[1752785867316,0.7,173.17,173.13,6.99798393]
[1752785867496,0.7,173.17,173.14,29.8]
[1752785868401,0.03,173.17,173.14,42.57363307]
[1752785868602,0.03,173.17,173.15,7.66798393]
[1752785868796,0.03,173.17,173.16,29.8]
[1752785869515,0.03,173.17,173.14,6.99798393]
[1752785869516,13.4727126,173.17,173.14,29.8]
[1752785869691,0.67,173.16,173.14,29.8]
[1752785871044,148.97,173.16,173.14,29.8]
[1752785871922,155.96798393,173.16,173.14,29.8]
[1752785872120,155.96798393,173.16,173.12,0.06]
[1752785872121,155.96798393,173.15,173.12,0.06]
[1752785872343,6.99798393,173.13,173.12,0.06]
[1752785872732,7.66798393,173.13,173.12,0.06]
[1752785873833,13.44399039,173.13,173.12,0.06]
[1752785874028,7.66798393,173.13,173.12,0.06]
[1752785874746,13.44399039,173.13,173.12,0.06]
[1752785880335,5.77577622,173.14,173.12,0.06]
[1752785880649,26.0,173.15,173.12,0.73]
[1752785880837,0.03,173.17,173.14,6.99798393]
[1752785881043,0.03,173.17,173.16,6.99798393]
[1752785881450,0.03,173.17,173.16,7.66798393]
[1752785881637,0.03,173.17,173.16,43.2429897]
[1752785882937,0.03,173.17,173.16,46.51060756]
[1752785889254,0.03,173.17,173.16,36.24500577]
[1752785889960,0.03,173.17,173.16,0.67]
[1752785890262,0.03,173.17,173.16,29.8]
[1752785891560,0.03,173.17,173.16,40.73560179]
[1752785892660,0.03,173.17,173.16,46.51060756]
[1752785892859,0.69,173.17,173.14,10.26560179]
[1752785893155,0.03,173.17,173.16,29.8]
[1752785901373,0.03,173.17,173.16,40.73560179]
[1752785901567,0.03,173.17,173.16,30.47]
[1752785901769,0.03,173.17,173.16,40.73560179]
[1752785901975,0.03,173.17,173.16,46.51060756]
[1752785904975,0.03,173.17,173.16,43.24314156]
[1752785905173,0.03,173.17,173.16,60.02782553]
[1752785905480,148.33,173.21,173.17,16.78468397]
[1752785905675,0.03,173.21,173.18,30.37743388]
[1752785905978,0.03,173.21,173.2,6.99813579]
[1752785906177,0.03,173.21,173.2,36.79813579]
[1752785906475,0.03,173.21,173.2,37.46813579]
[1752785906671,0.03,173.21,173.2,43.24180784]
[1752785908175,0.03,173.21,173.2,36.24367205]
[1752785908383,0.03,173.21,173.2,43.24180784]
[1752785908572,0.03,173.21,173.2,36.24367205]
[1752785908881,0.03,173.21,173.2,43.24180784]
[1752785912984,0.03,173.21,173.2,43.26180784]
[1752785917077,0.03,173.21,173.2,50.25994363]
[1752785917285,0.03,173.21,173.2,43.26180784]
[1752785918386,0.03,173.21,173.2,67.0446276]
[1752785918691,0.03,173.21,173.2,67.6219948]
[1752785920891,0.03,173.24,173.23,26.0]
[1752785921097,0.03,173.24,173.23,62.77813579]
[1752785921297,0.03,173.24,173.23,63.46813579]
[1752785922197,0.03,173.24,173.23,69.24080795]
[1752785922800,0.03,173.24,173.23,86.02549192]
[1752785924285,0.03,173.24,173.23,79.02735613]
[1752785924489,0.03,173.24,173.23,86.02549192]
[1752785926401,0.03,173.24,173.22,6.99813579]
[1752785926402,0.75,173.24,173.22,6.99813579]
[1752785926700,0.03,173.24,173.23,29.78]
[1752785927403,0.75,173.24,173.23,29.78]
[1752785928908,0.75,173.24,173.23,36.77813579]
[1752785929110,0.03,173.24,173.23,36.77813579]
[1752785930801,0.03,173.24,173.23,43.81807516]
[1752785931006,0.03,173.24,173.23,43.24080795]
[1752785932511,0.03,173.24,173.23,60.02549192]
[1752785932693,0.03,173.28,173.24,16.78468397]
[1752785932892,0.03,173.28,173.27,6.99813579]
[1752785933095,0.03,173.28,173.27,36.75813579]
[1752785933303,0.03,173.28,173.27,37.44813579]
[1752785933812,0.03,173.28,173.27,54.23281976]
[1752785934622,0.03,173.28,173.27,24.47281976]
[1752785934813,0.03,173.28,173.25,7.03920634]
[1752785935017,0.03,173.28,173.26,29.76]
[1752785935201,0.03,173.28,173.23,0.69]
[1752785935514,0.03,173.28,173.25,6.99813579]
[1752785935727,0.03,173.28,173.26,36.75813579]
[1752785936029,0.03,173.28,173.26,29.76]
[1752785936199,0.03,173.28,173.27,6.99813579]
[1752785938434,0.75,173.28,173.26,36.75813579]
[1752785938936,0.72,173.27,173.26,36.75813579]
[1752785942015,0.03,173.28,173.26,42.52980842]
[1752785942332,0.03,173.28,173.27,6.99813579]
[1752785943211,0.73,173.28,173.26,42.52980842]
[1752785944033,0.03,173.28,173.26,42.52980842]
[1752785944239,0.03,173.28,173.27,7.70813579]
[1752785944540,0.03,173.28,173.27,8.28526974]
[1752785944715,0.03,173.28,173.27,6.99813579]
[1752785945334,0.73,173.28,173.25,5.77190111]
[1752785945536,0.73,173.28,173.26,29.76]
[1752785945733,0.73,173.28,173.27,29.76]
[1752785946233,0.03,173.28,173.27,43.23947531]
[1752785946618,0.03,173.28,173.27,42.52947531]
[1752785946813,0.03,173.28,173.27,36.75813579]
[1752785947021,0.73,173.28,173.24,26.0]
[1752785947220,0.03,173.28,173.25,36.75813579]
[1752785947421,0.7,173.27,173.25,29.76]
[1752785947641,0.7,173.27,173.25,36.75813579]
[1752785949819,0.7,173.26,173.25,29.76]